fUST/lending_fUST_20250925
["ID","MTS","AMOUNT","RATE_DAILY","PERIOD"]
[387685095,1758809100895,-480.0,0.00019327,2]
[387685096,1758809100945,-480.0,0.00019327,2]
[387685097,1758809100993,-480.0,0.00019327,2]
[387685098,1758809101038,-480.0,0.00019327,2]
[387685099,1758809101086,-480.0,0.00019327,2]
[387685100,1758809101523,-89.48012638,0.00019327,2]
[387685101,1758809108541,-485.48797454,0.00019326,2]
[387685102,1758809108592,-205.0,0.00019326,2]
[387685103,1758809108643,-300.0,0.00019326,2]
[387685104,1758809108695,-169.0,0.00019326,2]
[387685105,1758809108754,-480.0,0.00019326,2]
[387685106,1758809108809,-480.0,0.00019326,2]
[387685107,1758809108862,-390.51987362,0.00019327,2]
[387685108,1758809108916,-480.0,0.00019327,2]
[387685109,1758809108968,-480.0,0.00019327,2]
[387685110,1758809109018,-480.0,0.00019327,2]
[387685111,1758809109069,-480.0,0.00019327,2]
[387685112,1758809109120,-480.0,0.00019327,2]
[387685113,1758809109646,-179.99430368,0.00019325,2]
[387685118,1758809118583,-1020.00569632,0.00019325,2]
[387685119,1758809118642,-159.75,0.00019326,2]
[387685120,1758809118697,-480.0,0.00019327,2]
[387685121,1758809118756,-480.0,0.00019327,2]
[387685122,1758809118815,-480.0,0.00019327,2]
[387685123,1758809118872,-993.69,0.00019327,2]
[387685125,1758809118928,-480.0,0.00019327,2]
[387685126,1758809118986,-480.0,0.00019327,2]
[387685127,1758809119137,-373.11860736,0.00019327,2]
[387685128,1758809119499,-106.88139264,0.00019326,2]
[387685134,1758809128568,-373.11860736,0.00019326,2]
[387685135,1758809128620,-277.10809963,0.00019326,2]
[387685136,1758809128672,-500.0,0.00019326,2]
[387685137,1758809128725,-539.59717299,0.00019326,2]
[387685138,1758809128781,-500.0,0.00019326,2]
[387685139,1758809128836,-500.0,0.00019326,2]
[387685140,1758809128887,-500.0,0.00019326,2]
[387685141,1758809128940,-500.0,0.00019326,2]
[387685142,1758809128992,-500.0,0.00019326,2]
[387685143,1758809129044,-106.88139264,0.00019327,2]
[387685144,1758809129466,-163.00595935,0.00019326,2]
[387685145,1758809129476,-1243.59349541,0.00019327,2]
[387685152,1758809173834,-256.00521597,0.00019251,2]
[387685153,1758809173886,-300.0,0.00019325,2]
[387685154,1758809173936,-480.0,0.00019326,2]
[387685155,1758809173987,-480.0,0.00019326,2]
[387685156,1758809174041,-480.0,0.00019326,2]
[387685157,1758809174092,-480.0,0.00019326,2]
[387685158,1758809174144,-480.0,0.00019326,2]
[387685159,1758809174195,-480.0,0.00019326,2]
[387685160,1758809174248,-253.20456408,0.00019326,2]
[387685161,1758809174300,-500.0,0.00019326,2]
[387685162,1758809174351,-500.0,0.00019326,2]
[387685163,1758809174409,-121.5904399,0.00019326,2]
[387685164,1758809174949,-378.4095601,0.00019326,2]
[387685165,1758809183654,-500.0,0.00019326,2]
[387685166,1758809183710,-500.0,0.00019326,2]
[387685167,1758809183763,-500.0,0.00019326,2]
[387685168,1758809183818,-500.0,0.00019326,2]
[387685169,1758809183869,-422.76928784,0.00019326,2]
[387685170,1758809183921,-339.93178311,0.00019326,2]
[387685171,1758809183971,-500.0,0.00019326,2]
[387685172,1758809184025,-480.0,0.00019326,2]
[387685173,1758809184079,-242.71486282,0.00019326,2]
[387685174,1758809184131,-480.0,0.00019326,2]
[387685175,1758809184183,-480.0,0.00019326,2]
[387685176,1758809184640,-109.17813246,0.00019326,2]
[387685177,1758809193689,-370.82186754,0.00019326,2]
[387685178,1758809193743,-480.0,0.00019326,2]
[387685179,1758809193802,-808.45,0.00019326,2]
[387685180,1758809193854,-480.0,0.00019326,2]
[387685181,1758809193906,-480.0,0.00019326,2]
[387685182,1758809193958,-344.66337903,0.00019326,2]
[387685183,1758809194016,-480.0,0.00019326,2]
[387685184,1758809194170,-480.0,0.00019326,2]
[387685185,1758809194222,-480.0,0.00019326,2]
[387685186,1758809194279,-480.0,0.00019326,2]
[387685187,1758809194697,-232.13950686,0.00019326,2]
[387685189,1758809203671,-247.86049314,0.00019326,2]
[387685190,1758809203722,-480.0,0.00019326,2]
[387685191,1758809203774,-480.0,0.00019326,2]
[387685192,1758809203825,-480.0,0.00019326,2]
[387685193,1758809203878,-480.0,0.00019326,2]
[387685194,1758809203930,-364.01,0.00019326,2]
[387685195,1758809203978,-480.0,0.00019326,2]
[387685196,1758809204027,-400.01,0.00019327,2]
[387685197,1758809204080,-480.0,0.00019327,2]
[387685198,1758809204130,-1000.0,0.00019327,2]
[387685199,1758809204526,-216.24901372,0.00019327,2]
[387685200,1758809241019,-300.0,0.00019325,2]
[387685201,1758809241071,-1117.9,0.00019326,2]
[387685202,1758809241120,-480.0,0.00019326,2]
[387685203,1758809241168,-492.87321901,0.00019326,2]
[387685204,1758809241216,-480.0,0.00019326,2]
[387685205,1758809241264,-176.65887871,0.00019326,2]
[387685206,1758809241313,-480.0,0.00019326,2]
[387685207,1758809241365,-480.0,0.00019326,2]
[387685208,1758809241415,-480.0,0.00019326,2]
[387685209,1758809241465,-480.0,0.00019326,2]
[387685210,1758809241901,-65.14580456,0.00019326,2]
[387685212,1758809248745,-180.26185894,0.000193,2]
[387685213,1758809248797,-359.80240155,0.00019326,2]
[387685214,1758809248852,-480.0,0.00019326,2]
[387685215,1758809248903,-263.67080338,0.00019326,2]
[387685216,1758809248954,-486.87041695,0.00019326,2]
[387685217,1758809249004,-480.0,0.00019326,2]
[387685218,1758809249056,-481.93788751,0.00019326,2]
[387685219,1758809249105,-480.0,0.00019326,2]
[387685220,1758809249153,-480.0,0.00019326,2]
[387685221,1758809249211,-480.0,0.00019326,2]
[387685222,1758809249262,-482.68872355,0.00019326,2]
[387685223,1758809249312,-209.54581624,0.00019326,2]
[387685224,1758809249763,-270.45418376,0.00019326,2]
[387685225,1758809258787,-480.0,0.00019326,2]
[387685226,1758809258839,-480.0,0.00019326,2]
[387685227,1758809258889,-493.73849876,0.00019326,2]
[387685228,1758809258940,-480.0,0.00019326,2]
[387685229,1758809258992,-480.0,0.00019326,2]
[387685230,1758809259045,-480.0,0.00019326,2]
[387685231,1758809259098,-244.43148459,0.00019326,2]
[387685232,1758809259150,-480.0,0.00019326,2]
[387685233,1758809259204,-480.0,0.00019326,2]
[387685234,1758809259258,-480.0,0.00019326,2]
[387685235,1758809259313,-363.6700333,0.00019326,2]
[387685236,1758809259843,-116.3299667,0.00019326,2]
[387685237,1758809268851,-480.0,0.00019326,2]
[387685238,1758809268906,-480.0,0.00019326,2]
[387685239,1758809268960,-480.0,0.00019326,2]
[387685240,1758809269012,-480.0,0.00019326,2]
[387685241,1758809269063,-783.75098628,0.00019327,2]
[387685242,1758809269117,-1000.0,0.00019327,2]
[387685243,1758809269173,-1000.0,0.00019327,2]
[387685244,1758809269480,-592.50802744,0.00019327,2]
[387685247,1758809318184,258.2306729,0.00018343,2]
[387685301,1758809433001,-224.00456393,0.00019226,2]
[387685304,1758809433012,-300.0,0.00019324,2]
[387685306,1758809433023,-300.0,0.00019324,2]
[387685308,1758809433033,-300.0,0.00019324,2]
[387685310,1758809433045,-1200.0,0.00019324,2]
[387685313,1758809433057,-300.0,0.00019324,2]
[387685315,1758809433068,-480.0,0.00019325,2]
[387685317,1758809433079,-573.53052258,0.00019325,2]
[387685319,1758809433090,-500.0,0.00019325,2]
[387685321,1758809433102,-500.0,0.00019325,2]
[387685324,1758809433112,-618.05236495,0.00019325,2]
[387685327,1758809433122,-500.0,0.00019325,2]
[387685330,1758809433132,-500.0,0.00019325,2]
[387685333,1758809433143,-387.41604977,0.00019325,2]
[387685337,1758809433155,-257.58896618,0.00019325,2]
[387685340,1758809433166,-500.0,0.00019325,2]
[387685343,1758809433178,-500.0,0.00019325,2]
[387685346,1758809433191,-500.0,0.00019325,2]
[387685349,1758809433205,-500.0,0.00019325,2]
[387685352,1758809433217,-500.0,0.00019325,2]
[387685355,1758809433230,-500.0,0.00019325,2]
[387685357,1758809433243,-500.0,0.00019325,2]
[387685359,1758809433255,-542.7808803,0.00019325,2]
[387685361,1758809433266,-177.85036103,0.00019325,2]
[387685363,1758809433278,-500.0,0.00019325,2]
[387685364,1758809433290,-500.0,0.00019325,2]
[387685365,1758809433303,-500.0,0.00019325,2]
[387685366,1758809433315,-500.0,0.00019325,2]
[387685367,1758809433327,-500.0,0.00019325,2]
[387685368,1758809433339,-500.0,0.00019325,2]
[387685369,1758809433352,-500.0,0.00019325,2]
[387685370,1758809433364,-500.0,0.00019325,2]
[387685371,1758809433375,-500.0,0.00019325,2]
[387685372,1758809433385,-500.0,0.00019325,2]
[387685373,1758809433396,-500.0,0.00019325,2]
[387685374,1758809433407,-480.0,0.00019326,2]
[387685375,1758809433418,-480.0,0.00019326,2]
[387685376,1758809433429,-480.0,0.00019326,2]
[387685377,1758809433441,-480.0,0.00019326,2]
[387685378,1758809433455,-480.0,0.00019326,2]
[387685379,1758809433468,-480.0,0.00019326,2]
[387685380,1758809433481,-480.0,0.00019326,2]
[387685381,1758809433492,-491.42670829,0.00019326,2]
[387685382,1758809433504,-480.0,0.00019326,2]
[387685383,1758809433514,-586.95,0.00019326,2]
[387685385,1758809433524,-480.0,0.00019326,2]
[387685386,1758809433536,-480.0,0.00019326,2]
[387685387,1758809433546,-480.0,0.00019326,2]
[387685388,1758809433558,-480.0,0.00019326,2]
[387685389,1758809433568,-480.0,0.00019326,2]
[387685390,1758809433580,-480.0,0.00019326,2]
[387685391,1758809433590,-480.0,0.00019326,2]
[387685392,1758809433601,-480.0,0.00019326,2]
[387685393,1758809433611,-480.0,0.00019326,2]
[387685394,1758809433622,-480.0,0.00019326,2]
[387685395,1758809433633,-153.10188069,0.00019326,2]
[387685396,1758809433644,-497.81,0.00019326,2]
[387685397,1758809433655,-480.0,0.00019326,2]
[387685398,1758809433666,-480.0,0.00019326,2]
[387685399,1758809433679,-480.0,0.00019326,2]
[387685400,1758809433690,-480.0,0.00019326,2]
[387685401,1758809433701,-480.0,0.00019326,2]
[387685402,1758809433712,-480.0,0.00019326,2]
[387685403,1758809433723,-480.0,0.00019326,2]
[387685404,1758809433735,-480.0,0.00019326,2]
[387685405,1758809433746,-480.0,0.00019326,2]
[387685406,1758809433758,-480.0,0.00019326,2]
[387685407,1758809433769,-480.0,0.00019326,2]
[387685408,1758809433780,-480.0,0.00019326,2]
[387685409,1758809433791,-500.0,0.00019326,2]
[387685410,1758809433802,-480.0,0.00019326,2]
[387685411,1758809433813,-500.0,0.00019326,2]
[387685412,1758809433824,-480.0,0.00019326,2]
[387685413,1758809433835,-480.0,0.00019326,2]
[387685414,1758809433846,-500.0,0.00019326,2]
[387685415,1758809433858,-480.0,0.00019326,2]
[387685416,1758809433870,-228.45954699,0.00019326,2]
[387685417,1758809433881,-610.57734665,0.00019326,2]
[387685418,1758809433892,-480.0,0.00019326,2]
[387685419,1758809433903,-486.76859424,0.00019326,2]
[387685420,1758809433914,-480.0,0.00019326,2]
[387685421,1758809433925,-480.0,0.00019326,2]
[387685422,1758809433936,-480.0,0.00019326,2]
[387685423,1758809433947,-385.01722467,0.00019326,2]
[387685424,1758809433959,-480.0,0.00019326,2]
[387685425,1758809433969,-480.0,0.00019326,2]
[387685426,1758809434112,-480.0,0.00019326,2]
[387685427,1758809434126,-480.0,0.00019326,2]
[387685428,1758809434136,-480.0,0.00019326,2]
[387685429,1758809434147,-480.0,0.00019326,2]
[387685430,1758809434158,-480.0,0.00019326,2]
[387685431,1758809434168,-480.0,0.00019326,2]
[387685432,1758809434178,-480.0,0.00019326,2]
[387685433,1758809434188,-480.0,0.00019326,2]
[387685434,1758809434199,-480.0,0.00019326,2]
[387685435,1758809434210,-546.16517752,0.00019326,2]
[387685436,1758809434224,-480.0,0.00019326,2]
[387685437,1758809434234,-896.03,0.00019326,2]
[387685438,1758809434244,-40621.54942046,0.00019326,2]
[387685439,1758809434255,-92.14545236,0.00019327,2]
[387685440,1758809434266,-480.0,0.00019327,2]
[387685441,1758809434276,-480.0,0.00019327,2]
[387685442,1758809434287,-480.0,0.00019327,2]
[387685443,1758809434298,-480.0,0.00019327,2]
[387685444,1758809434307,-480.0,0.00019327,2]
[387685445,1758809434317,-500.0,0.0001933,2]
[387685446,1758809434326,-151.0,0.0001934,2]
[387685447,1758809434336,-151.0,0.0001934,2]
[387685448,1758809434346,-151.0,0.0001934,2]
[387685449,1758809434355,-151.0,0.0001934,2]
[387685450,1758809434364,-151.0,0.0001934,2]
[387685451,1758809434374,-151.0,0.0001934,2]
[387685452,1758809434383,-151.0,0.0001934,2]
[387685453,1758809434393,-151.0,0.0001934,2]
[387685454,1758809434402,-151.0,0.0001934,2]
[387685455,1758809434412,-151.0,0.0001934,2]
[387685456,1758809434422,-152.5192044,0.0001934,2]
[387685457,1758809434431,-245.6,0.00019342,3]
[387685458,1758809434441,-736.84,0.00019342,3]
[387685459,1758809434451,-245.6,0.00019342,3]
[387685460,1758809434460,-94.94010646,0.00019342,3]
[387685461,1758809434529,-641.90989354,0.00019342,3]
[387685462,1758809434541,-480.0,0.0001935,2]
[387685463,1758809434551,-480.0,0.0001935,2]
[387685464,1758809434560,-480.0,0.0001935,2]
[387685465,1758809434570,-480.0,0.0001935,2]
[387685466,1758809434580,-527.21494552,0.0001935,2]
[387685467,1758809434589,-480.0,0.0001935,2]
[387685468,1758809434599,-480.0,0.0001935,2]
[387685469,1758809434608,-480.0,0.0001935,2]
[387685470,1758809434618,-480.0,0.0001935,2]
[387685471,1758809434628,-480.0,0.0001935,2]
[387685472,1758809434637,-480.0,0.0001935,2]
[387685473,1758809434647,-405.71756841,0.0001935,2]
[387685474,1758809434660,-500.0,0.00019351,2]
[387685475,1758809434670,-500.0,0.00019351,2]
[387685476,1758809434680,-500.0,0.00019351,2]
[387685477,1758809434690,-154.9922281,0.00019351,2]
[387685478,1758809434699,-167.96934736,0.00019351,2]
[387685479,1758809434711,-396.73147292,0.00019351,2]
[387685480,1758809434720,-500.0,0.00019351,2]
[387685481,1758809434730,-500.0,0.00019351,2]
[387685482,1758809434739,-500.0,0.00019351,2]
[387685483,1758809434749,-500.0,0.00019351,2]
[387685484,1758809434758,-500.0,0.00019351,2]
[387685485,1758809434767,-500.0,0.00019351,2]
[387685486,1758809434777,-500.0,0.00019351,2]
[387685487,1758809434786,-500.0,0.00019351,2]
[387685488,1758809434795,-500.0,0.00019351,2]
[387685489,1758809434805,-500.0,0.00019351,2]
[387685490,1758809434815,-500.0,0.00019351,2]
[387685491,1758809434824,-547.9080762,0.00019351,2]
[387685492,1758809434834,-500.0,0.00019351,2]
[387685493,1758809434844,-500.0,0.00019351,2]
[387685494,1758809434854,-500.0,0.00019351,2]
[387685495,1758809434863,-182.27148565,0.00019351,2]
[387685496,1758809434873,-960.53764406,0.00019352,2]
[387685497,1758809434888,-1194.683348,0.00019352,2]
[387685506,1758809438766,-480.0,0.00019325,2]
[387685507,1758809438777,-491.64209477,0.00019325,2]
[387685509,1758809438787,-480.0,0.00019326,2]
[387685510,1758809438796,-480.0,0.00019326,2]
[387685511,1758809438806,-480.0,0.00019326,2]
[387685512,1758809438815,-502.07475793,0.00019327,2]
[387685513,1758809438824,-8873.57575219,0.00019352,2]
[387685514,1758809438837,-18522.93556216,0.00019352,2]
[387685515,1758809438848,-340448.26769359,0.00019352,2]
[387685516,1758809438858,-500.0,0.000194,2]
[387685517,1758809438867,-5007.0,0.00019499,2]
[387685518,1758809438876,-5000.0,0.00019501,2]
[387685519,1758809438885,-500.0,0.00019573,2]
[387685520,1758809438894,-500.0,0.00019573,2]
[387685521,1758809438903,-480.0,0.00019599,2]
[387685522,1758809438912,-480.0,0.000196,2]
[387685523,1758809438922,-272.47196373,0.000196,2]
[387685524,1758809438932,-504.88176214,0.000196,2]
[387685525,1758809438942,-608.8315995,0.000196,2]
[387685526,1758809438951,-480.0,0.000196,2]
[387685527,1758809438962,-480.0,0.000196,2]
[387685528,1758809438971,-605.22560838,0.000196,2]
[387685529,1758809438980,-480.0,0.000196,2]
[387685530,1758809438989,-480.0,0.000196,2]
[387685531,1758809438999,-480.0,0.000196,2]
[387685532,1758809439008,-480.0,0.000196,2]
[387685533,1758809439018,-480.0,0.000196,2]
[387685534,1758809439027,-480.0,0.000196,2]
[387685535,1758809439037,-480.0,0.000196,2]
[387685536,1758809439046,-480.0,0.000196,2]
[387685537,1758809439055,-480.0,0.000196,2]
[387685538,1758809439065,-480.0,0.000196,2]
[387685539,1758809439075,-480.0,0.000196,2]
[387685540,1758809439085,-1117.9,0.000196,2]
[387685541,1758809439094,-480.0,0.000196,2]
[387685542,1758809439103,-480.0,0.000196,2]
[387685543,1758809439113,-607.13081962,0.000196,2]
[387685544,1758809439123,-453.96340861,0.000196,2]
[387685545,1758809439132,-480.0,0.000196,2]
[387685546,1758809439141,-480.0,0.000196,2]
[387685547,1758809439150,-480.0,0.000196,2]
[387685548,1758809439160,-335.4,0.000196,2]
[387685549,1758809439169,-480.0,0.000196,2]
[387685550,1758809439179,-480.0,0.000196,2]
[387685551,1758809439188,-480.0,0.000196,2]
[387685552,1758809439198,-480.0,0.000196,2]
[387685553,1758809439208,-442.92,0.000196,2]
[387685554,1758809439218,-480.0,0.000196,2]
[387685555,1758809439231,-480.0,0.000196,2]
[387685556,1758809439240,-480.0,0.000196,2]
[387685557,1758809439249,-480.0,0.000196,2]
[387685558,1758809439259,-480.0,0.000196,2]
[387685559,1758809439269,-480.0,0.000196,2]
[387685560,1758809439278,-480.0,0.000196,2]
[387685561,1758809439287,-480.0,0.000196,2]
[387685562,1758809439297,-480.0,0.000196,2]
[387685563,1758809439307,-480.0,0.000196,2]
[387685564,1758809439316,-480.0,0.000196,2]
[387685565,1758809439327,-497.81,0.000196,2]
[387685566,1758809439336,-480.0,0.000196,2]
[387685567,1758809439346,-480.0,0.000196,2]
[387685568,1758809439355,-480.0,0.000196,2]
[387685569,1758809439365,-480.0,0.000196,2]
[387685570,1758809439374,-480.0,0.000196,2]
[387685571,1758809439383,-480.0,0.000196,2]
[387685572,1758809439393,-480.0,0.000196,2]
[387685573,1758809439402,-480.0,0.000196,2]
[387685574,1758809439412,-292.51391753,0.000196,2]
[387685575,1758809439421,-480.0,0.000196,2]
[387685576,1758809439431,-480.0,0.000196,2]
[387685577,1758809439440,-480.0,0.000196,2]
[387685578,1758809439450,-480.0,0.000196,2]
[387685579,1758809439461,-480.0,0.000196,2]
[387685580,1758809439470,-480.0,0.000196,2]
[387685581,1758809439480,-480.0,0.000196,2]
[387685582,1758809439488,-480.0,0.000196,2]
[387685583,1758809439498,-480.0,0.000196,2]
[387685584,1758809439507,-480.0,0.000196,2]
[387685585,1758809439516,-480.0,0.000196,2]
[387685586,1758809439525,-480.0,0.000196,2]
[387685587,1758809439534,-225.12033315,0.000196,2]
[387685588,1758809439542,-896.03,0.000196,2]
[387685589,1758809439551,-480.0,0.000196,2]
[387685590,1758809439561,-480.0,0.00019601,2]
[387685591,1758809439570,-480.0,0.00019601,2]
[387685592,1758809439579,-500.0,0.00019601,2]
[387685593,1758809439588,-483.74001767,0.00019601,2]
[387685594,1758809439597,-447.76565906,0.00019601,2]
[387685595,1758809439606,-333.70796609,0.00019601,2]
[387685596,1758809439616,-480.0,0.00019601,2]
[387685597,1758809439625,-480.0,0.00019601,2]
[387685598,1758809439635,-480.0,0.00019601,2]
[387685599,1758809439644,-480.0,0.00019601,2]
[387685600,1758809439654,-160.21854039,0.00019624,2]
[387685601,1758809439663,-486.46329643,0.00019624,2]
[387685602,1758809439673,-480.0,0.00019624,2]
[387685603,1758809439683,-150.0,0.00019826,2]
[387685604,1758809439692,-480.0,0.00019873,2]
[387685605,1758809439702,-486.38902683,0.00019874,2]
[387685606,1758809439713,-615.60095132,0.00019874,2]
[387685607,1758809439722,-480.0,0.00019874,2]
[387685608,1758809439731,-480.0,0.00019874,2]
[387685609,1758809439741,-156.89805978,0.00019874,2]
[387685610,1758809439750,-234.42950866,0.00019874,2]
[387685611,1758809439759,-295.42441304,0.00019874,2]
[387685612,1758809439768,-480.0,0.00019874,2]
[387685613,1758809439777,-480.0,0.00019874,2]
[387685614,1758809439787,-1117.9,0.00019874,2]
[387685615,1758809439797,-240.80005109,0.00019874,2]
[387685616,1758809439806,-480.0,0.00019874,2]
[387685617,1758809439815,-387.27137735,0.00019874,2]
[387685618,1758809439825,-480.0,0.00019874,2]
[387685619,1758809439835,-480.0,0.00019874,2]
[387685620,1758809439844,-480.0,0.00019874,2]
[387685621,1758809439853,-480.0,0.00019874,2]
[387685622,1758809439863,-480.0,0.00019874,2]
[387685623,1758809439872,-480.0,0.00019874,2]
[387685624,1758809439882,-480.0,0.00019874,2]
[387685625,1758809439891,-466.6,0.00019874,2]
[387685626,1758809439901,-480.0,0.00019874,2]
[387685627,1758809439910,-480.0,0.00019874,2]
[387685628,1758809439920,-497.81,0.00019874,2]
[387685629,1758809439930,-480.0,0.00019874,2]
[387685630,1758809439939,-480.0,0.00019874,2]
[387685631,1758809439949,-480.0,0.00019874,2]
[387685632,1758809439959,-480.0,0.00019874,2]
[387685633,1758809439968,-480.0,0.00019874,2]
[387685634,1758809439978,-480.0,0.00019874,2]
[387685635,1758809439987,-480.0,0.00019874,2]
[387685636,1758809439997,-480.0,0.00019874,2]
[387685637,1758809440007,-480.0,0.00019874,2]
[387685638,1758809440016,-480.0,0.00019874,2]
[387685639,1758809440027,-480.0,0.00019874,2]
[387685640,1758809440037,-480.0,0.00019874,2]
[387685641,1758809440047,-480.0,0.00019874,2]
[387685642,1758809440056,-480.0,0.00019874,2]
[387685643,1758809440066,-480.0,0.00019874,2]
[387685644,1758809440076,-480.0,0.00019874,2]
[387685645,1758809440084,-896.03,0.00019874,2]
[387685646,1758809440092,-480.0,0.00019874,2]
[387685647,1758809440101,-480.0,0.00019875,2]
[387685648,1758809440109,-480.0,0.00019875,2]
[387685649,1758809440119,-480.0,0.00019875,2]
[387685650,1758809440127,-480.0,0.00019875,2]
[387685651,1758809440136,-480.0,0.00019898,2]
[387685652,1758809440146,-501.60747928,0.000199,2]
[387685653,1758809440246,-500.0,0.00019973,2]
[387685654,1758809440255,-500.0,0.00019973,2]
[387685655,1758809440263,-500.0,0.00019973,2]
[387685656,1758809440270,-500.0,0.00019973,2]
[387685657,1758809440278,-500.0,0.00019973,2]
[387685658,1758809440286,-500.0,0.00019973,2]
[387685659,1758809440293,-100000.0,0.0001999,2]
[387685660,1758809440302,-507.36583507,0.00020121,2]
[387685661,1758809440311,-500.0,0.00020121,2]
[387685662,1758809440321,-480.0,0.00020147,2]
[387685663,1758809440330,-198.95,0.00020148,2]
[387685665,1758809440340,-480.0,0.00020148,2]
[387685667,1758809440349,-1117.9,0.00020148,2]
[387685669,1758809440359,-480.0,0.00020148,2]
[387685670,1758809440368,-480.0,0.00020148,2]
[387685671,1758809440377,-176.16,0.00020148,2]
[387685672,1758809440387,-480.0,0.00020148,2]
[387685673,1758809440396,-480.0,0.00020148,2]
[387685674,1758809440406,-480.0,0.00020148,2]
[387685675,1758809440415,-480.0,0.00020148,2]
[387685676,1758809440424,-480.0,0.00020148,2]
[387685677,1758809440433,-497.81,0.00020148,2]
[387685678,1758809440443,-522.21,0.00020148,2]
[387685679,1758809440452,-196.52495836,0.00020148,2]
[387685681,1758809440462,-480.0,0.00020148,2]
[387685683,1758809440471,-480.0,0.00020148,2]
[387685685,1758809440480,-480.0,0.00020148,2]
[387685687,1758809440489,-480.0,0.00020148,2]
[387685689,1758809440499,-480.0,0.00020148,2]
[387685691,1758809440508,-480.0,0.00020148,2]
[387685693,1758809440517,-480.0,0.00020148,2]
[387685695,1758809440525,-443.46,0.00020148,2]
[387685696,1758809440534,-480.0,0.00020148,2]
[387685698,1758809440543,-480.0,0.00020148,2]
[387685700,1758809440552,-896.03,0.00020148,2]
[387685702,1758809440561,-480.0,0.00020148,2]
[387685704,1758809440570,-480.0,0.00020149,2]
[387685706,1758809440580,-480.0,0.00020149,2]
[387685708,1758809440591,-480.0,0.00020149,2]
[387685710,1758809440600,-480.0,0.00020172,2]
[387685712,1758809440610,-323.84986345,0.00020422,2]
[387685714,1758809440618,-1117.9,0.00020422,2]
[387685716,1758809440627,-480.0,0.00020422,2]
[387685718,1758809440637,-480.0,0.00020422,2]
[387685720,1758809440646,-480.0,0.00020422,2]
[387685722,1758809440656,-480.0,0.00020422,2]
[387685724,1758809440665,-480.0,0.00020422,2]
[387685726,1758809440674,-480.0,0.00020422,2]
[387685728,1758809440684,-480.0,0.00020422,2]
[387685730,1758809440694,-497.81,0.00020422,2]
[387685732,1758809440704,-340.20104849,0.00020422,2]
[387685734,1758809440714,-480.0,0.00020422,2]
[387685736,1758809440723,-480.0,0.00020422,2]
[387685738,1758809440733,-480.0,0.00020422,2]
[387685740,1758809440745,-480.0,0.00020422,2]
[387685742,1758809440756,-310.92,0.00020422,2]
[387685744,1758809440766,-424.30311923,0.00020422,2]
[387685746,1758809440775,-896.03,0.00020422,2]
[387685748,1758809440784,-480.0,0.00020422,2]
[387685750,1758809440793,-480.0,0.00020423,2]
[387685752,1758809440803,-480.0,0.00020423,2]
[387685754,1758809440811,-480.0,0.00020446,2]
[387685756,1758809440821,-1116.93175621,0.00020496,2]